{"text_format":"1","workbook":"xlsx","n_sheets":5,"sheets":["Monday","Copy Names","Job History","Names","ALL NAMES"],"not_rendered":{"charts":0,"images":0,"macros":1,"external_links":0,"defined_names":1,"comments":1,"pivot_tables":0},"unopened":[],"bounds":{"document_bytes":16777216,"sheet_cells":100000,"rows_first":2000,"rows_last":500,"rows_between":2000,"halvings":0,"cell_chars":16384,"cell_head_chars":4096},"cells_cut":0,"cells_raw":0,"read":"whole","date_system":"1900"}

{"sheet":"Monday","index":0,"n_rows":46,"n_cols":16,"rows_kept":46,"cut":false,"hidden":false,"merged":[]}
["MONDAY"]
[]
[]
[null,null,null,"GOODS IN TEAM ",null,null,null,"FLOOR TEAM",null,null,null,null,null,null,null,"E.Lindo"]
[null,null,null,null,null,null,null,null,null,null,null,null,null,null,null,"J.Gorrell"]
[null,null,1,{"$f":"VLOOKUP(Names!$F$1,Names!$B$2:$C$44,2,FALSE)","v":"T.Underwood"},"2PM",null,1,{"$f":"VLOOKUP(Names!$K$1,Names!$B$2:$C$44,2,FALSE)","v":"C.Keegan"},"2PM",null,null,null,null,null,null,"K.Pape"]
[null,null,2,{"$f":"VLOOKUP(Names!$G$1,Names!$B$2:$C$44,2,FALSE)","v":"G.Hawkins"},"2PM",null,2,{"$f":"VLOOKUP(Names!$L$1,Names!$B$2:$C$44,2,FALSE)","v":"V.Ilott"},"2PM",null,null,null,null,null,null,"M.Abu"]
[null,null,3,{"$f":"VLOOKUP(Names!$H$1,Names!$B$2:$C$44,2,FALSE)","v":"A.Nicholls"},"2PM",null,3,{"$f":"VLOOKUP(Names!$M$1,Names!$B$2:$C$44,2,FALSE)","v":"I.Edgar"},"2PM",null,null,null,null,null,null,"M.Flanagan"]
[null,null,4,{"$f":"VLOOKUP(Names!$I$1,Names!$B$2:$C$44,2,FALSE)","v":"J.Pyke"},"2PM",null,4,{"$f":"VLOOKUP(Names!$N$1,Names!$B$2:$C$44,2,FALSE)","v":"A.Wall"},"4PM",null,null,null,null,null,null,"M.Kumar"]
[null,null,5,{"$f":"VLOOKUP(Names!$J$1,Names!$B$2:$C$44,2,FALSE)","v":"P.Green"},"4PM",null,5,{"$f":"VLOOKUP(Names!$O$1,Names!$B$2:$C$44,2,FALSE)","v":"S.Abraham"},"4PM",null,null,null,null,null,null,"M.Lawson"]
[null,null,null,null,null,null,null,null,null,null,null,null,null,null,null,"P.Chapman"]
[null,null,null,null,null,null,null,null,null,null,null,null,null,null,null,"R.Hallgally"]
[null,null,null,null,"2 to 4",null,null,null,null,null,null,null,null,null,null,"S.Abraham"]
[null,null,null,"FORKS",null,null,null,null,null,null,null,null,null,null,null,"S.Pearce"]
[null,null,1,{"$f":"INDEX(Names!$C$2:$C$14,MATCH(MIN(IF(Names!$B$2:$B$14-Names!P1>=0,Names!$B$2:$B$14,FALSE)),IF(Names!$B$2:$B$14-Names!P1>=0,Names!$B$2:$B$14,FALSE),0))","v":"T.Bryan"},"2PM",null,null,null,null,null,null,null,null,null,null,"S.Stretton"]
[null,null,null,null,null,null,null,"Bread Pickers",null,null,null,null,null,null,null,"T.Bryan"]
[null,null,null,"OPPS",null,null,1,null,null,null,null,null,null,null,null,"A.Bradbury"]
[null,null,1,null,"2PM",null,2,null,null,null,null,null,null,null,null,"A.Nicholls"]
[null,null,2,null,"2PM",null,3,null,null,null,null,null,null,null,null,"A.Wall"]
[null,null,null,"COVER",null,null,4,null,null,null,null,null,null,null,null,"A.Walton"]
[null,null,1,null,"2PM",null,5,null,null,null,null,null,null,null,null,"B.Sutton"]
[null,null,null,"SPONSOR",null,null,6,null,null,null,null,null,null,null,null,"C.Boateng"]
[null,null,1,null,"4PM",null,7,null,null,null,null,null,null,null,null,"C.Keegan"]
[null,null,null,"HYGIENE",null,null,8,null,null,null,null,null,null,null,null,"D.Hickmott"]
[null,null,1,null,"2PM",null,9,null,null,null,null,null,null,null,null,"D.Magill"]
[null,null,null,null,null,null,null,null,null,null,null,null,null,null,null,"E.Mullally"]
[null,null,null,null,null,null,null,null,null,null,null,null,null,null,null,"G.Franklin"]
[null,null,null,null,null,null,null,null,null,null,null,null,null,null,null,"G.Hawkins"]
[null,null,null,null,null,null,null,null,null,null,null,null,null,null,null,"I.Edgar"]
[null,null,null,null,null,null,null,null,null,null,null,null,null,null,null,"J.Allen"]
[null,null,null,null,null,null,null,null,null,null,null,null,null,null,null,"J.Pyke"]
[null,null,null,null,null,null,null,null,null,null,null,null,null,null,null,"J.Reynolds"]
[null,null,null,null,null,null,null,null,null,null,null,null,null,null,null,"L.R.Brown"]
[null,null,null,null,null,null,null,null,null,null,null,null,null,null,null,"P.Green"]
[null,null,null,null,null,null,null,null,null,null,null,null,null,null,null,"P.McArthur"]
[null,null,null,null,null,null,null,null,null,null,null,null,null,null,null,"P.Regan"]
[null,null,null,null,null,null,null,null,null,null,null,null,null,null,null,"R.Diprose"]
[null,null,null,null,null,null,null,null,null,null,null,null,null,null,null,"R.Pembroke"]
[null,null,null,null,null,null,null,null,null,null,null,null,null,null,null,"R.Rozniak"]
[null,null,null,null,null,null,null,null,null,null,null,null,null,null,null,"S.Chow"]
[null,null,null,null,null,null,null,null,null,null,null,null,null,null,null,"S.Tariq"]
[null,null,null,null,null,null,null,null,null,null,null,null,null,null,null,"T.Doyle"]
[null,null,null,null,null,null,null,null,null,null,null,null,null,null,null,"T.Harman"]
[null,null,null,null,null,null,null,null,null,null,null,null,null,null,null,"T.Underwood"]
[null,null,null,null,null,null,null,null,null,null,null,null,null,null,null,"T.Winter"]
[null,null,null,null,null,null,null,null,null,null,null,null,null,null,null,"V.Ilott"]

{"sheet":"Copy Names","index":1,"n_rows":25,"n_cols":9,"rows_kept":25,"cut":false,"hidden":false,"merged":[]}
[]
[]
[]
[null,null,null,"GOODS IN TEAM ",null,null,null,"FLOOR TEAM"]
[]
[null,null,1,"T.Underwood","2PM",null,1,"S.Brookman","2PM"]
[null,null,2,"R.Diprose","2PM",null,2,"A.Bradbury","2PM"]
[null,null,3,"P.McArthur","2PM",null,3,"B.Sutton","2PM"]
[null,null,4,"M.Borek","2PM",null,4,"C.Keegan","2PM"]
[null,null,5,"A.Nicholls","2PM"]
[]
[]
[]
[null,null,null,"FORKS"]
[null,null,1,"P.Lavender","2PM"]
[null,null,null,null,null,null,null,"Bread Pickers"]
[null,null,null,"OPPS",null,null,1]
[null,null,1,null,null,null,2]
[null,null,2,null,null,null,3]
[null,null,null,"COVER",null,null,4]
[null,null,1,null,null,null,5]
[null,null,null,"SPONSOR",null,null,6]
[null,null,1,null,null,null,7]
[null,null,null,"HYGIENE",null,null,8]
[null,null,1,null,null,null,9]

{"sheet":"Job History","index":2,"n_rows":69,"n_cols":14,"rows_kept":69,"cut":false,"hidden":false,"merged":[]}
[null,"Nº","Name","Goods in(Days)","Pick. (Days)","Fl.Team(Days)","Forks(Days)","Non.Productive",null,{"$f":"AVERAGE(H:H)","v":0},"Goods in","Picking","Floor team","Forks"]
[null,"Job History!"]
[null,1,"A.Bradbury",{"$f":"COUNTIF($K$2:$K$60000,C3)","v":0},{"$f":"COUNTIF($L$2:$L$60000,C3)","v":0},{"$f":"COUNTIF($M$2:$M$60000,C3)","v":0},{"$f":"COUNTIF($N$2:$N$60000,C3)","v":0},{"$f":"COUNTIF($K$2:$K$60000,C3)+COUNTIF($M$2:$M$60000,C3)+COUNTIF($N$2:$N$60000,C3)","v":0}]
[null,2,"A.Hussey",{"$f":"COUNTIF($K$2:$K$60000,C4)","v":0},{"$f":"COUNTIF($L$2:$L$60000,C4)","v":0},{"$f":"COUNTIF($M$2:$M$60000,C4)","v":0},{"$f":"COUNTIF($N$2:$N$60000,C4)","v":0},{"$f":"COUNTIF($K$2:$K$60000,C4)+COUNTIF($M$2:$M$60000,C4)+COUNTIF($N$2:$N$60000,C4)","v":0}]
[null,3,"A.McFarlane",0,0,0,0,0]
[null,4,"A.Nicholls",0,0,0,0,0]
[null,5,"B.Ratcliffe",0,0,0,0,0]
[null,6,"A.Wall",0,0,0,0,0]
[null,7,"A.Walton",0,0,0,0,0]
[null,8,"B.Golubkov",0,0,0,0,0]
[null,9,"B.Ratcliffe",0,0,0,0,0]
[null,10,"B.Sutton",0,0,0,0,0]
[null,11,"C.Boateng",0,0,0,0,0]
[null,12,"C.Keegan",0,0,0,0,0]
[null,13,"D.Caffell",0,0,0,0,0]
[null,14,"D.Cooke",0,0,0,0,0]
[null,15,"D.Hickmott",0,0,0,0,0]
[null,16,"D.Magill",0,0,0,0,0]
[null,17,"D.Roczniak",0,0,0,0,0]
[null,18,"E.Lindo",0,0,0,0,0]
[null,19,"E.Mooney",0,0,0,0,0]
[null,20,"E.Mullally",0,0,0,0,0]
[null,21,"E.Selickis",0,0,0,0,0]
[null,22,"G.Franklin",{"$f":"COUNTIF($K$2:$K$60000,C24)","v":0},{"$f":"COUNTIF($L$2:$L$60000,C24)","v":0},{"$f":"COUNTIF($M$2:$M$60000,C24)","v":0},{"$f":"COUNTIF($N$2:$N$60000,C24)","v":0},{"$f":"COUNTIF($K$2:$K$60000,C24)+COUNTIF($M$2:$M$60000,C24)+COUNTIF($N$2:$N$60000,C24)","v":0}]
[null,23,"G.Hawkins",{"$f":"COUNTIF($K$2:$K$60000,C25)","v":0},{"$f":"COUNTIF($L$2:$L$60000,C25)","v":0},{"$f":"COUNTIF($M$2:$M$60000,C25)","v":0},{"$f":"COUNTIF($N$2:$N$60000,C25)","v":0},{"$f":"COUNTIF($K$2:$K$60000,C25)+COUNTIF($M$2:$M$60000,C25)+COUNTIF($N$2:$N$60000,C25)","v":0}]
[null,24,"H.Mohamed",0,0,0,0,0]
[null,25,"I.Edgar",0,0,0,0,0]
[null,26,"J.Allen",0,0,0,0,0]
[null,27,"J.Gorrell",0,0,0,0,0]
[null,28,"J.Hough",0,0,0,0,0]
[null,29,"J.Pyke",0,0,0,0,0]
[null,30,"J.Reynolds",0,0,0,0,0]
[null,31,"K.Pape",0,0,0,0,0]
[null,32,"K.Verdi",0,0,0,0,0]
[null,33,"L.R.Browne",0,0,0,0,0]
[null,34,"M.Abu",0,0,0,0,0]
[null,35,"M.Borek",0,0,0,0,0]
[null,36,"M.Flanagan",0,0,0,0,0]
[null,37,"M.Kochowski",0,0,0,0,0]
[null,38,"M.Kumar",0,0,0,0,0]
[null,39,"M.Lawson",0,0,0,0,0]
[null,40,"M.Pushotam",0,0,0,0,0]
[null,41,"N.Lukasevicius",0,0,0,0,0]
[null,42,"P.Chapman",0,0,0,0,0]
[null,43,"P.Green",{"$f":"COUNTIF($K$2:$K$60000,C45)","v":0},{"$f":"COUNTIF($L$2:$L$60000,C45)","v":0},{"$f":"COUNTIF($M$2:$M$60000,C45)","v":0},{"$f":"COUNTIF($N$2:$N$60000,C45)","v":0},{"$f":"COUNTIF($K$2:$K$60000,C45)+COUNTIF($M$2:$M$60000,C45)+COUNTIF($N$2:$N$60000,C45)","v":0}]
[null,44,"P.Johnson",{"$f":"COUNTIF($K$2:$K$60000,C46)","v":0},{"$f":"COUNTIF($L$2:$L$60000,C46)","v":0},{"$f":"COUNTIF($M$2:$M$60000,C46)","v":0},{"$f":"COUNTIF($N$2:$N$60000,C46)","v":0},{"$f":"COUNTIF($K$2:$K$60000,C46)+COUNTIF($M$2:$M$60000,C46)+COUNTIF($N$2:$N$60000,C46)","v":0}]
[null,45,"P.Lavender",0,0,0,0,0]
[null,46,"P.McArthur",0,0,0,0,0]
[null,47,"P.Regan",0,0,0,0,0]
[null,48,"R.Diprose",0,0,0,0,0]
[null,49,"R.Hallgally",0,0,0,0,0]
[null,50,"R.O’Meara",0,0,0,0,0]
[null,51,"R.Pembroke",0,0,0,0,0]
[null,52,"R.Rozniak",{"$f":"COUNTIF($K$2:$K$60000,C54)","v":0},{"$f":"COUNTIF($L$2:$L$60000,C54)","v":0},{"$f":"COUNTIF($M$2:$M$60000,C54)","v":0},{"$f":"COUNTIF($N$2:$N$60000,C54)","v":0},{"$f":"COUNTIF($K$2:$K$60000,C54)+COUNTIF($M$2:$M$60000,C54)+COUNTIF($N$2:$N$60000,C54)","v":0}]
[null,53,"S.Abraham",0,0,0,0,0]
[null,54,"S.Brookman",0,0,0,0,0]
[null,55,"S.Chow",0,0,0,0,0]
[null,56,"S.Harrison",0,0,0,0,0]
[null,57,"S.Monk",0,0,0,0,0]
[null,58,"S.Pearce",0,0,0,0,0]
[null,59,"S.Stretton",0,0,0,0,0]
[null,60,"S.Tariq",0,0,0,0,0]
[null,61,"T.Bryan",0,0,0,0,0]
[null,62,"T.Doyle",0,0,0,0,0]
[null,63,"T.Harman",0,0,0,0,0]
[null,64,"T.Watkins",0,0,0,0,0]
[null,65,"T.Winter",0,0,0,0,0]
[null,66,"V.Ilott",0,0,0,0,0]
[null,67]

{"sheet":"Names","index":3,"n_rows":50,"n_cols":29,"rows_kept":50,"cut":false,"hidden":false,"merged":[]}
["Rand","Rank","Name",null,"умножатели",1,2,3,4,5,6,7,8,9,10,11,12,13,14,15,16,17,18,19,20,21,null,"Rand","Rank"]
[{"$f":"RAND()*E2*F2","v":6.6431868103651315E-3},{"$f":"RANK($A2,$A$2:$A$44)+COUNTIF(B$1:B1,B1)-1","v":42},"E.Lindo",null,1.5,{"$f":" IF( 'Job History'!$J$1 > 0, IF( E2 < VLOOKUP(C2, 'Job History'!$C:$H, 6, 0) / 'Job History'!$J$1, 0, 1 ), 1 )","v":1},null,null,null,null,null,null,null,null,null,null,null,null,null,null,null,null,null,null,null,null,null,{"$f":"RAND()*AF2","v":0},{"$f":"RANK($AB2,$AB$2:$AB$50)+COUNTIF(AC$1:AC1,AC1)-1","v":1}]
[{"$f":"RAND()*E3*F3","v":0.91329716110693604},{"$f":"RANK($A3,$A$2:$A$44)+COUNTIF(B$1:B2,B2)-1","v":19},"J.Gorrell",null,1.5,{"$f":" IF( 'Job History'!$J$1 > 0, IF( E3 < VLOOKUP(C3, 'Job History'!$C:$H, 6, 0) / 'Job History'!$J$1, 0, 1 ), 1 )","v":1},null,null,null,null,null,null,null,null,null,null,null,null,null,null,null,null,null,null,null,null,null,{"$f":"RAND()*AF3","v":0},{"$f":"RANK($AB3,$AB$2:$AB$50)+COUNTIF(AC$1:AC2,AC2)-1","v":1}]
[{"$f":"RAND()*E4*F4","v":0.79177364393498195},{"$f":"RANK($A4,$A$2:$A$44)+COUNTIF(B$1:B3,B3)-1","v":25},"K.Pape",null,1.5,{"$f":" IF( 'Job History'!$J$1 > 0, IF( E4 < VLOOKUP(C4, 'Job History'!$C:$H, 6, 0) / 'Job History'!$J$1, 0, 1 ), 1 )","v":1},null,null,null,null,null,null,null,null,null,null,null,null,null,null,null,null,null,null,null,null,null,{"$f":"RAND()*AF4","v":0},{"$f":"RANK($AB4,$AB$2:$AB$50)+COUNTIF(AC$1:AC3,AC3)-1","v":2}]
[{"$f":"RAND()*E5*F5","v":0.84822734019164403},{"$f":"RANK($A5,$A$2:$A$44)+COUNTIF(B$1:B4,B4)-1","v":22},"M.Abu",null,1.5,{"$f":" IF( 'Job History'!$J$1 > 0, IF( E5 < VLOOKUP(C5, 'Job History'!$C:$H, 6, 0) / 'Job History'!$J$1, 0, 1 ), 1 )","v":1},null,null,null,null,null,null,null,null,null,null,null,null,null,null,null,null,null,null,null,null,null,{"$f":"RAND()*AF5","v":0},{"$f":"RANK($AB5,$AB$2:$AB$50)+COUNTIF(AC$1:AC4,AC4)-1","v":1}]
[{"$f":"RAND()*E6*F6","v":0.5804130959190783},{"$f":"RANK($A6,$A$2:$A$44)+COUNTIF(B$1:B5,B5)-1","v":32},"M.Flanagan",null,1.5,{"$f":" IF( 'Job History'!$J$1 > 0, IF( E6 < VLOOKUP(C6, 'Job History'!$C:$H, 6, 0) / 'Job History'!$J$1, 0, 1 ), 1 )","v":1},null,null,null,null,null,null,null,null,null,null,null,null,null,null,null,null,null,null,null,null,null,{"$f":"RAND()*AF6","v":0},{"$f":"RANK($AB6,$AB$2:$AB$50)+COUNTIF(AC$1:AC5,AC5)-1","v":3}]
[{"$f":"RAND()*E7*F7","v":0.26743182554278949},{"$f":"RANK($A7,$A$2:$A$44)+COUNTIF(B$1:B6,B6)-1","v":38},"M.Kumar",null,1.5,{"$f":" IF( 'Job History'!$J$1 > 0, IF( E7 < VLOOKUP(C7, 'Job History'!$C:$H, 6, 0) / 'Job History'!$J$1, 0, 1 ), 1 )","v":1},null,null,null,null,null,null,null,null,null,null,null,null,null,null,null,null,null,null,null,null,null,{"$f":"RAND()*AF7","v":0},{"$f":"RANK($AB7,$AB$2:$AB$50)+COUNTIF(AC$1:AC6,AC6)-1","v":1}]
[{"$f":"RAND()*E8*F8","v":0.36980448784951242},{"$f":"RANK($A8,$A$2:$A$44)+COUNTIF(B$1:B7,B7)-1","v":34},"M.Lawson",null,1.5,{"$f":" IF( 'Job History'!$J$1 > 0, IF( E8 < VLOOKUP(C8, 'Job History'!$C:$H, 6, 0) / 'Job History'!$J$1, 0, 1 ), 1 )","v":1},null,null,null,null,null,null,null,null,null,null,null,null,null,null,null,null,null,null,null,null,null,{"$f":"RAND()*AF8","v":0},{"$f":"RANK($AB8,$AB$2:$AB$50)+COUNTIF(AC$1:AC7,AC7)-1","v":4}]
[{"$f":"RAND()*E9*F9","v":0.88874660321890697},{"$f":"RANK($A9,$A$2:$A$44)+COUNTIF(B$1:B8,B8)-1","v":20},"P.Chapman",null,1.5,{"$f":" IF( 'Job History'!$J$1 > 0, IF( E9 < VLOOKUP(C9, 'Job History'!$C:$H, 6, 0) / 'Job History'!$J$1, 0, 1 ), 1 )","v":1},null,null,null,null,null,null,null,null,null,null,null,null,null,null,null,null,null,null,null,null,null,{"$f":"RAND()*AF9","v":0},{"$f":"RANK($AB9,$AB$2:$AB$50)+COUNTIF(AC$1:AC8,AC8)-1","v":1}]
[{"$f":"RAND()*E10*F10","v":0.80396345723717721},{"$f":"RANK($A10,$A$2:$A$44)+COUNTIF(B$1:B9,B9)-1","v":24},"R.Hallgally",null,1.5,{"$f":" IF( 'Job History'!$J$1 > 0, IF( E10 < VLOOKUP(C10, 'Job History'!$C:$H, 6, 0) / 'Job History'!$J$1, 0, 1 ), 1 )","v":1},null,null,null,null,null,null,null,null,null,null,null,null,null,null,null,null,null,null,null,null,null,{"$f":"RAND()*AF10","v":0},{"$f":"RANK($AB10,$AB$2:$AB$50)+COUNTIF(AC$1:AC9,AC9)-1","v":5}]
[{"$f":"RAND()*E11*F11","v":1.2469981599234214},{"$f":"RANK($A11,$A$2:$A$44)+COUNTIF(B$1:B10,B10)-1","v":10},"S.Abraham",null,1.5,{"$f":" IF( 'Job History'!$J$1 > 0, IF( E11 < VLOOKUP(C11, 'Job History'!$C:$H, 6, 0) / 'Job History'!$J$1, 0, 1 ), 1 )","v":1},null,null,null,null,null,null,null,null,null,null,null,null,null,null,null,null,null,null,null,null,null,{"$f":"RAND()*AF11","v":0},{"$f":"RANK($AB11,$AB$2:$AB$50)+COUNTIF(AC$1:AC10,AC10)-1","v":1}]
[{"$f":"RAND()*E12*F12","v":0.29009199694633159},{"$f":"RANK($A12,$A$2:$A$44)+COUNTIF(B$1:B11,B11)-1","v":36},"S.Pearce",null,1.5,{"$f":" IF( 'Job History'!$J$1 > 0, IF( E12 < VLOOKUP(C12, 'Job History'!$C:$H, 6, 0) / 'Job History'!$J$1, 0, 1 ), 1 )","v":1},null,null,null,null,null,null,null,null,null,null,null,null,null,null,null,null,null,null,null,null,null,{"$f":"RAND()*AF12","v":0},{"$f":"RANK($AB12,$AB$2:$AB$50)+COUNTIF(AC$1:AC11,AC11)-1","v":6}]
[{"$f":"RAND()*E13*F13","v":0.39246713971718727},{"$f":"RANK($A13,$A$2:$A$44)+COUNTIF(B$1:B12,B12)-1","v":33},"S.Stretton",null,1.5,{"$f":" IF( 'Job History'!$J$1 > 0, IF( E13 < VLOOKUP(C13, 'Job History'!$C:$H, 6, 0) / 'Job History'!$J$1, 0, 1 ), 1 )","v":1},null,null,null,null,null,null,null,null,null,null,null,null,null,null,null,null,null,null,null,null,null,{"$f":"RAND()*AF13","v":0},{"$f":"RANK($AB13,$AB$2:$AB$50)+COUNTIF(AC$1:AC12,AC12)-1","v":1}]
[{"$f":"RAND()*E14*F14","v":1.2176737702668736},{"$f":"RANK($A14,$A$2:$A$44)+COUNTIF(B$1:B13,B13)-1","v":11},"T.Bryan",null,1.5,{"$f":" IF( 'Job History'!$J$1 > 0, IF( E14 < VLOOKUP(C14, 'Job History'!$C:$H, 6, 0) / 'Job History'!$J$1, 0, 1 ), 1 )","v":1},null,null,null,null,null,null,null,null,null,null,null,null,null,null,null,null,null,null,null,null,null,{"$f":"RAND()*AF14","v":0},{"$f":"RANK($AB14,$AB$2:$AB$50)+COUNTIF(AC$1:AC13,AC13)-1","v":7}]
[{"$f":"RAND()*E15*F15","v":0.75407961109065547},{"$f":"RANK($A15,$A$2:$A$44)+COUNTIF(B$1:B14,B14)-1","v":27},"A.Bradbury",null,1,{"$f":" IF( 'Job History'!$J$1 > 0, IF( E15 < VLOOKUP(C15, 'Job History'!$C:$H, 6, 0) / 'Job History'!$J$1, 0, 1 ), 1 )","v":1},null,null,null,null,null,null,null,null,null,null,null,null,null,null,null,null,null,null,null,null,null,{"$f":"RAND()*AF15","v":0},{"$f":"RANK($AB15,$AB$2:$AB$50)+COUNTIF(AC$1:AC14,AC14)-1","v":1}]
[{"$f":"RAND()*E16*F16","v":1.8964227487263723},{"$f":"RANK($A16,$A$2:$A$44)+COUNTIF(B$1:B15,B15)-1","v":3},"A.Nicholls",null,2,{"$f":" IF( 'Job History'!$J$1 > 0, IF( E16 < VLOOKUP(C16, 'Job History'!$C:$H, 6, 0) / 'Job History'!$J$1, 0, 1 ), 1 )","v":1},null,null,null,null,null,null,null,null,null,null,null,null,null,null,null,null,null,null,null,null,null,{"$f":"RAND()*AF16","v":0},{"$f":"RANK($AB16,$AB$2:$AB$50)+COUNTIF(AC$1:AC15,AC15)-1","v":8}]
[{"$f":"RAND()*E17*F17","v":1.372917549204862},{"$f":"RANK($A17,$A$2:$A$44)+COUNTIF(B$1:B16,B16)-1","v":9},"A.Wall",null,2,{"$f":" IF( 'Job History'!$J$1 > 0, IF( E17 < VLOOKUP(C17, 'Job History'!$C:$H, 6, 0) / 'Job History'!$J$1, 0, 1 ), 1 )","v":1},null,null,null,null,null,null,null,null,null,null,null,null,null,null,null,null,null,null,null,null,null,{"$f":"RAND()*AF17","v":0},{"$f":"RANK($AB17,$AB$2:$AB$50)+COUNTIF(AC$1:AC16,AC16)-1","v":1}]
[{"$f":"RAND()*E18*F18","v":1.1200681373525883},{"$f":"RANK($A18,$A$2:$A$44)+COUNTIF(B$1:B17,B17)-1","v":15},"A.Walton",null,2,{"$f":" IF( 'Job History'!$J$1 > 0, IF( E18 < VLOOKUP(C18, 'Job History'!$C:$H, 6, 0) / 'Job History'!$J$1, 0, 1 ), 1 )","v":1},null,null,null,null,null,null,null,null,null,null,null,null,null,null,null,null,null,null,null,null,null,{"$f":"RAND()*AF18","v":0},{"$f":"RANK($AB18,$AB$2:$AB$50)+COUNTIF(AC$1:AC17,AC17)-1","v":9}]
[{"$f":"RAND()*E19*F19","v":0.17696369476982121},{"$f":"RANK($A19,$A$2:$A$44)+COUNTIF(B$1:B18,B18)-1","v":40},"B.Sutton",null,2,{"$f":" IF( 'Job History'!$J$1 > 0, IF( E19 < VLOOKUP(C19, 'Job History'!$C:$H, 6, 0) / 'Job History'!$J$1, 0, 1 ), 1 )","v":1},null,null,null,null,null,null,null,null,null,null,null,null,null,null,null,null,null,null,null,null,null,{"$f":"RAND()*AF19","v":0},{"$f":"RANK($AB19,$AB$2:$AB$50)+COUNTIF(AC$1:AC18,AC18)-1","v":1}]
[{"$f":"RAND()*E20*F20","v":0.97437331079062495},{"$f":"RANK($A20,$A$2:$A$44)+COUNTIF(B$1:B19,B19)-1","v":16},"C.Boateng",null,2,{"$f":" IF( 'Job History'!$J$1 > 0, IF( E20 < VLOOKUP(C20, 'Job History'!$C:$H, 6, 0) / 'Job History'!$J$1, 0, 1 ), 1 )","v":1},null,null,null,null,null,null,null,null,null,null,null,null,null,null,null,null,null,null,null,null,null,{"$f":"RAND()*AF20","v":0},{"$f":"RANK($AB20,$AB$2:$AB$50)+COUNTIF(AC$1:AC19,AC19)-1","v":10}]
[{"$f":"RAND()*E21*F21","v":1.7149326037744455},{"$f":"RANK($A21,$A$2:$A$44)+COUNTIF(B$1:B20,B20)-1","v":6},"C.Keegan",null,2,{"$f":" IF( 'Job History'!$J$1 > 0, IF( E21 < VLOOKUP(C21, 'Job History'!$C:$H, 6, 0) / 'Job History'!$J$1, 0, 1 ), 1 )","v":1},null,null,null,null,null,null,null,null,null,null,null,null,null,null,null,null,null,null,null,null,null,{"$f":"RAND()*AF21","v":0},{"$f":"RANK($AB21,$AB$2:$AB$50)+COUNTIF(AC$1:AC20,AC20)-1","v":1}]
[{"$f":"RAND()*E22*F22","v":0.82953836921244561},{"$f":"RANK($A22,$A$2:$A$44)+COUNTIF(B$1:B21,B21)-1","v":23},"D.Hickmott",null,2,{"$f":" IF( 'Job History'!$J$1 > 0, IF( E22 < VLOOKUP(C22, 'Job History'!$C:$H, 6, 0) / 'Job History'!$J$1, 0, 1 ), 1 )","v":1},null,null,null,null,null,null,null,null,null,null,null,null,null,null,null,null,null,null,null,null,null,{"$f":"RAND()*AF22","v":0},{"$f":"RANK($AB22,$AB$2:$AB$50)+COUNTIF(AC$1:AC21,AC21)-1","v":11}]
[{"$f":"RAND()*E23*F23","v":0.31112706233981335},{"$f":"RANK($A23,$A$2:$A$44)+COUNTIF(B$1:B22,B22)-1","v":35},"D.Magill",null,1,{"$f":" IF( 'Job History'!$J$1 > 0, IF( E23 < VLOOKUP(C23, 'Job History'!$C:$H, 6, 0) / 'Job History'!$J$1, 0, 1 ), 1 )","v":1},null,null,null,null,null,null,null,null,null,null,null,null,null,null,null,null,null,null,null,null,null,{"$f":"RAND()*AF23","v":0},{"$f":"RANK($AB23,$AB$2:$AB$50)+COUNTIF(AC$1:AC22,AC22)-1","v":1}]
[{"$f":"RAND()*E24*F24","v":0.68642486216392107},{"$f":"RANK($A24,$A$2:$A$44)+COUNTIF(B$1:B23,B23)-1","v":30},"E.Mullally",null,2,{"$f":" IF( 'Job History'!$J$1 > 0, IF( E24 < VLOOKUP(C24, 'Job History'!$C:$H, 6, 0) / 'Job History'!$J$1, 0, 1 ), 1 )","v":1},null,null,null,null,null,null,null,null,null,null,null,null,null,null,null,null,null,null,null,null,null,{"$f":"RAND()*AF24","v":0},{"$f":"RANK($AB24,$AB$2:$AB$50)+COUNTIF(AC$1:AC23,AC23)-1","v":12}]
[{"$f":"RAND()*E25*F25","v":0.85306126845065178},{"$f":"RANK($A25,$A$2:$A$44)+COUNTIF(B$1:B24,B24)-1","v":21},"G.Franklin",null,2,{"$f":" IF( 'Job History'!$J$1 > 0, IF( E25 < VLOOKUP(C25, 'Job History'!$C:$H, 6, 0) / 'Job History'!$J$1, 0, 1 ), 1 )","v":1},null,null,null,null,null,null,null,null,null,null,null,null,null,null,null,null,null,null,null,null,null,{"$f":"RAND()*AF25","v":0},{"$f":"RANK($AB25,$AB$2:$AB$50)+COUNTIF(AC$1:AC24,AC24)-1","v":1}]
[{"$f":"RAND()*E26*F26","v":1.9928460021133358},{"$f":"RANK($A26,$A$2:$A$44)+COUNTIF(B$1:B25,B25)-1","v":2},"G.Hawkins",null,2,{"$f":" IF( 'Job History'!$J$1 > 0, IF( E26 < VLOOKUP(C26, 'Job History'!$C:$H, 6, 0) / 'Job History'!$J$1, 0, 1 ), 1 )","v":1},null,null,null,null,null,null,null,null,null,null,null,null,null,null,null,null,null,null,null,null,null,{"$f":"RAND()*AF26","v":0},{"$f":"RANK($AB26,$AB$2:$AB$50)+COUNTIF(AC$1:AC25,AC25)-1","v":13}]
[{"$f":"RAND()*E27*F27","v":1.4483293133515884},{"$f":"RANK($A27,$A$2:$A$44)+COUNTIF(B$1:B26,B26)-1","v":8},"I.Edgar",null,2,{"$f":" IF( 'Job History'!$J$1 > 0, IF( E27 < VLOOKUP(C27, 'Job History'!$C:$H, 6, 0) / 'Job History'!$J$1, 0, 1 ), 1 )","v":1},null,null,null,null,null,null,null,null,null,null,null,null,null,null,null,null,null,null,null,null,null,{"$f":"RAND()*AF27","v":0},{"$f":"RANK($AB27,$AB$2:$AB$50)+COUNTIF(AC$1:AC26,AC26)-1","v":1}]
[{"$f":"RAND()*E28*F28","v":1.1994357075421218},{"$f":"RANK($A28,$A$2:$A$44)+COUNTIF(B$1:B27,B27)-1","v":13},"J.Allen",null,2,{"$f":" IF( 'Job History'!$J$1 > 0, IF( E28 < VLOOKUP(C28, 'Job History'!$C:$H, 6, 0) / 'Job History'!$J$1, 0, 1 ), 1 )","v":1},null,null,null,null,null,null,null,null,null,null,null,null,null,null,null,null,null,null,null,null,null,{"$f":"RAND()*AF28","v":0},{"$f":"RANK($AB28,$AB$2:$AB$50)+COUNTIF(AC$1:AC27,AC27)-1","v":14}]
[{"$f":"RAND()*E29*F29","v":1.8514625905621724},{"$f":"RANK($A29,$A$2:$A$44)+COUNTIF(B$1:B28,B28)-1","v":4},"J.Pyke",null,2,{"$f":" IF( 'Job History'!$J$1 > 0, IF( E29 < VLOOKUP(C29, 'Job History'!$C:$H, 6, 0) / 'Job History'!$J$1, 0, 1 ), 1 )","v":1},null,null,null,null,null,null,null,null,null,null,null,null,null,null,null,null,null,null,null,null,null,{"$f":"RAND()*AF29","v":0},{"$f":"RANK($AB29,$AB$2:$AB$50)+COUNTIF(AC$1:AC28,AC28)-1","v":1}]
[{"$f":"RAND()*E30*F30","v":0.69007497202186618},{"$f":"RANK($A30,$A$2:$A$44)+COUNTIF(B$1:B29,B29)-1","v":29},"J.Reynolds",null,2,{"$f":" IF( 'Job History'!$J$1 > 0, IF( E30 < VLOOKUP(C30, 'Job History'!$C:$H, 6, 0) / 'Job History'!$J$1, 0, 1 ), 1 )","v":1},null,null,null,null,null,null,null,null,null,null,null,null,null,null,null,null,null,null,null,null,null,{"$f":"RAND()*AF30","v":0},{"$f":"RANK($AB30,$AB$2:$AB$50)+COUNTIF(AC$1:AC29,AC29)-1","v":15}]
[{"$f":"RAND()*E31*F31","v":1.1433648664195122},{"$f":"RANK($A31,$A$2:$A$44)+COUNTIF(B$1:B30,B30)-1","v":14},"L.R.Brown",null,2,{"$f":" IF( 'Job History'!$J$1 > 0, IF( E31 < VLOOKUP(C31, 'Job History'!$C:$H, 6, 0) / 'Job History'!$J$1, 0, 1 ), 1 )","v":1},null,null,null,null,null,null,null,null,null,null,null,null,null,null,null,null,null,null,null,null,null,{"$f":"RAND()*AF31","v":0},{"$f":"RANK($AB31,$AB$2:$AB$50)+COUNTIF(AC$1:AC30,AC30)-1","v":1}]
[{"$f":"RAND()*E32*F32","v":1.8089978649540515},{"$f":"RANK($A32,$A$2:$A$44)+COUNTIF(B$1:B31,B31)-1","v":5},"P.Green",null,2,{"$f":" IF( 'Job History'!$J$1 > 0, IF( E32 < VLOOKUP(C32, 'Job History'!$C:$H, 6, 0) / 'Job History'!$J$1, 0, 1 ), 1 )","v":1},null,null,null,null,null,null,null,null,null,null,null,null,null,null,null,null,null,null,null,null,null,{"$f":"RAND()*AF32","v":0},{"$f":"RANK($AB32,$AB$2:$AB$50)+COUNTIF(AC$1:AC31,AC31)-1","v":16}]
[{"$f":"RAND()*E33*F33","v":0.91802597360364357},{"$f":"RANK($A33,$A$2:$A$44)+COUNTIF(B$1:B32,B32)-1","v":18},"P.McArthur",null,2,{"$f":" IF( 'Job History'!$J$1 > 0, IF( E33 < VLOOKUP(C33, 'Job History'!$C:$H, 6, 0) / 'Job History'!$J$1, 0, 1 ), 1 )","v":1},null,null,null,null,null,null,null,null,null,null,null,null,null,null,null,null,null,null,null,null,null,{"$f":"RAND()*AF33","v":0},{"$f":"RANK($AB33,$AB$2:$AB$50)+COUNTIF(AC$1:AC32,AC32)-1","v":1}]
[{"$f":"RAND()*E34*F34","v":0.15485129971075917},{"$f":"RANK($A34,$A$2:$A$44)+COUNTIF(B$1:B33,B33)-1","v":41},"P.Regan",null,2,{"$f":" IF( 'Job History'!$J$1 > 0, IF( E34 < VLOOKUP(C34, 'Job History'!$C:$H, 6, 0) / 'Job History'!$J$1, 0, 1 ), 1 )","v":1},null,null,null,null,null,null,null,null,null,null,null,null,null,null,null,null,null,null,null,null,null,{"$f":"RAND()*AF34","v":0},{"$f":"RANK($AB34,$AB$2:$AB$50)+COUNTIF(AC$1:AC33,AC33)-1","v":17}]
[{"$f":"RAND()*E35*F35","v":0.9325837519649578},{"$f":"RANK($A35,$A$2:$A$44)+COUNTIF(B$1:B34,B34)-1","v":17},"R.Diprose",null,2,{"$f":" IF( 'Job History'!$J$1 > 0, IF( E35 < VLOOKUP(C35, 'Job History'!$C:$H, 6, 0) / 'Job History'!$J$1, 0, 1 ), 1 )","v":1},null,null,null,null,null,null,null,null,null,null,null,null,null,null,null,null,null,null,null,null,null,{"$f":"RAND()*AF35","v":0},{"$f":"RANK($AB35,$AB$2:$AB$50)+COUNTIF(AC$1:AC34,AC34)-1","v":1}]
[{"$f":"RAND()*E36*F36","v":0.25181219902929586},{"$f":"RANK($A36,$A$2:$A$44)+COUNTIF(B$1:B35,B35)-1","v":39},"R.Pembroke",null,1,{"$f":" IF( 'Job History'!$J$1 > 0, IF( E36 < VLOOKUP(C36, 'Job History'!$C:$H, 6, 0) / 'Job History'!$J$1, 0, 1 ), 1 )","v":1},null,null,null,null,null,null,null,null,null,null,null,null,null,null,null,null,null,null,null,null,null,{"$f":"RAND()*AF36","v":0},{"$f":"RANK($AB36,$AB$2:$AB$50)+COUNTIF(AC$1:AC35,AC35)-1","v":18}]
[{"$f":"RAND()*E37*F37","v":1.2097463440934497},{"$f":"RANK($A37,$A$2:$A$44)+COUNTIF(B$1:B36,B36)-1","v":12},"R.Rozniak",null,2,{"$f":" IF( 'Job History'!$J$1 > 0, IF( E37 < VLOOKUP(C37, 'Job History'!$C:$H, 6, 0) / 'Job History'!$J$1, 0, 1 ), 1 )","v":1},null,null,null,null,null,null,null,null,null,null,null,null,null,null,null,null,null,null,null,null,null,{"$f":"RAND()*AF37","v":0},{"$f":"RANK($AB37,$AB$2:$AB$50)+COUNTIF(AC$1:AC36,AC36)-1","v":1}]
[{"$f":"RAND()*E38*F38","v":0.73252337660415912},{"$f":"RANK($A38,$A$2:$A$44)+COUNTIF(B$1:B37,B37)-1","v":28},"S.Chow",null,1,{"$f":" IF( 'Job History'!$J$1 > 0, IF( E38 < VLOOKUP(C38, 'Job History'!$C:$H, 6, 0) / 'Job History'!$J$1, 0, 1 ), 1 )","v":1},null,null,null,null,null,null,null,null,null,null,null,null,null,null,null,null,null,null,null,null,null,{"$f":"RAND()*AF38","v":0},{"$f":"RANK($AB38,$AB$2:$AB$50)+COUNTIF(AC$1:AC37,AC37)-1","v":19}]
[{"$f":"RAND()*E39*F39","v":8.0304875859857602E-9},{"$f":"RANK($A39,$A$2:$A$44)+COUNTIF(B$1:B38,B38)-1","v":43},"S.Tariq",null,1E-8,{"$f":" IF( 'Job History'!$J$1 > 0, IF( E39 < VLOOKUP(C39, 'Job History'!$C:$H, 6, 0) / 'Job History'!$J$1, 0, 1 ), 1 )","v":1},null,null,null,null,null,null,null,null,null,null,null,null,null,null,null,null,null,null,null,null,null,{"$f":"RAND()*AF39","v":0},{"$f":"RANK($AB39,$AB$2:$AB$50)+COUNTIF(AC$1:AC38,AC38)-1","v":1}]
[{"$f":"RAND()*E40*F40","v":0.77773425190008794},{"$f":"RANK($A40,$A$2:$A$44)+COUNTIF(B$1:B39,B39)-1","v":26},"T.Doyle",null,1,{"$f":" IF( 'Job History'!$J$1 > 0, IF( E40 < VLOOKUP(C40, 'Job History'!$C:$H, 6, 0) / 'Job History'!$J$1, 0, 1 ), 1 )","v":1},null,null,null,null,null,null,null,null,null,null,null,null,null,null,null,null,null,null,null,null,null,{"$f":"RAND()*AF40","v":0},{"$f":"RANK($AB40,$AB$2:$AB$50)+COUNTIF(AC$1:AC39,AC39)-1","v":20}]
[{"$f":"RAND()*E41*F41","v":0.65834466556396054},{"$f":"RANK($A41,$A$2:$A$44)+COUNTIF(B$1:B40,B40)-1","v":31},"T.Harman",null,1,{"$f":" IF( 'Job History'!$J$1 > 0, IF( E41 < VLOOKUP(C41, 'Job History'!$C:$H, 6, 0) / 'Job History'!$J$1, 0, 1 ), 1 )","v":1},null,null,null,null,null,null,null,null,null,null,null,null,null,null,null,null,null,null,null,null,null,{"$f":"RAND()*AF41","v":0},{"$f":"RANK($AB41,$AB$2:$AB$50)+COUNTIF(AC$1:AC40,AC40)-1","v":1}]
[{"$f":"RAND()*E42*F42","v":1232877.2793744581},{"$f":"RANK($A42,$A$2:$A$44)+COUNTIF(B$1:B41,B41)-1","v":1},"T.Underwood",null,10000000,{"$f":" IF( 'Job History'!$J$1 > 0, IF( E42 < VLOOKUP(C42, 'Job History'!$C:$H, 6, 0) / 'Job History'!$J$1, 0, 1 ), 1 )","v":1},null,null,null,null,null,null,null,null,null,null,null,null,null,null,null,null,null,null,null,null,null,{"$f":"RAND()*AF42","v":0},{"$f":"RANK($AB42,$AB$2:$AB$50)+COUNTIF(AC$1:AC41,AC41)-1","v":21}]
[{"$f":"RAND()*E43*F43","v":0.28606438867958095},{"$f":"RANK($A43,$A$2:$A$44)+COUNTIF(B$1:B42,B42)-1","v":37},"T.Winter",null,1,{"$f":" IF( 'Job History'!$J$1 > 0, IF( E43 < VLOOKUP(C43, 'Job History'!$C:$H, 6, 0) / 'Job History'!$J$1, 0, 1 ), 1 )","v":1},null,null,null,null,null,null,null,null,null,null,null,null,null,null,null,null,null,null,null,null,null,{"$f":"RAND()*AF43","v":0},{"$f":"RANK($AB43,$AB$2:$AB$50)+COUNTIF(AC$1:AC42,AC42)-1","v":1}]
[{"$f":"RAND()*E44*F44","v":1.6584868225206839},{"$f":"RANK($A44,$A$2:$A$44)+COUNTIF(B$1:B43,B43)-1","v":7},"V.Ilott",null,2,{"$f":" IF( 'Job History'!$J$1 > 0, IF( E44 < VLOOKUP(C44, 'Job History'!$C:$H, 6, 0) / 'Job History'!$J$1, 0, 1 ), 1 )","v":1},null,null,null,null,null,null,null,null,null,null,null,null,null,null,null,null,null,null,null,null,null,{"$f":"RAND()*AF44","v":0},{"$f":"RANK($AB44,$AB$2:$AB$50)+COUNTIF(AC$1:AC43,AC43)-1","v":22}]
[null,null,null,null,null,null,null,null,null,null,null,null,null,null,null,null,null,null,null,null,null,null,null,null,null,null,null,{"$f":"RAND()*AF45","v":0},{"$f":"RANK($AB45,$AB$2:$AB$50)+COUNTIF(AC$1:AC44,AC44)-1","v":1}]
[null,null,null,null,null,null,null,null,null,null,null,null,null,null,null,null,null,null,null,null,null,null,null,null,null,null,null,{"$f":"RAND()*AF46","v":0},{"$f":"RANK($AB46,$AB$2:$AB$50)+COUNTIF(AC$1:AC45,AC45)-1","v":23}]
[null,null,null,null,null,null,null,null,null,null,null,null,null,null,null,null,null,null,null,null,null,null,null,null,null,null,null,{"$f":"RAND()*AF47","v":0},{"$f":"RANK($AB47,$AB$2:$AB$50)+COUNTIF(AC$1:AC46,AC46)-1","v":1}]
[null,null,null,null,null,null,null,null,null,null,null,null,null,null,null,null,null,null,null,null,null,null,null,null,null,null,null,{"$f":"RAND()*AF48","v":0},{"$f":"RANK($AB48,$AB$2:$AB$50)+COUNTIF(AC$1:AC47,AC47)-1","v":24}]
[null,null,null,null,null,null,null,null,null,null,null,null,null,null,null,null,null,null,null,null,null,null,null,null,null,null,null,{"$f":"RAND()*AF49","v":0},{"$f":"RANK($AB49,$AB$2:$AB$50)+COUNTIF(AC$1:AC48,AC48)-1","v":1}]
[null,null,null,null,null,null,null,null,null,null,null,null,null,null,null,null,null,null,null,null,null,null,null,null,null,null,null,{"$f":"RAND()*AF50","v":0},{"$f":"RANK($AB50,$AB$2:$AB$50)+COUNTIF(AC$1:AC49,AC49)-1","v":25}]

{"sheet":"ALL NAMES","index":4,"n_rows":67,"n_cols":2,"rows_kept":67,"cut":false,"hidden":true,"merged":[[0,0,0,1]]}
["All Names!"]
[1,"A.Bradbury"]
[2,"A.Hussey"]
[3,"A.McFarlane"]
[4,"A.Nicholls"]
[5,"B.Ratcliffe"]
[6,"A.Wall"]
[7,"A.Walton"]
[8,"B.Golubkov"]
[9,"B.Ratcliffe"]
[10,"B.Sutton"]
[11,"C.Boateng"]
[12,"C.Keegan"]
[13,"D.Caffell"]
[14,"D.Cooke"]
[15,"D.Hickmott"]
[16,"D.Magill"]
[17,"D.Roczniak"]
[18,"E.Lindo"]
[19,"E.Mooney"]
[20,"E.Mullally"]
[21,"E.Selickis"]
[22,"G.Franklin"]
[23,"G.Hawkins"]
[24,"H.Mohamed"]
[25,"I.Edgar"]
[26,"J.Allen"]
[27,"J.Gorrell"]
[28,"J.Hough"]
[29,"J.Pyke"]
[30,"J.Reynolds"]
[31,"K.Pape"]
[32,"K.Verdi"]
[33,"L.R.Browne"]
[34,"M.Abu"]
[35,"M.Borek"]
[36,"M.Flanagan"]
[37,"M.Kochowski"]
[38,"M.Kumar"]
[39,"M.Lawson"]
[40,"M.Pushotam"]
[41,"N.Lukasevicius"]
[42,"P.Chapman"]
[43,"P.Green"]
[44,"P.Johnson"]
[45,"P.Lavender"]
[46,"P.McArthur"]
[47,"P.Regan"]
[48,"R.Diprose"]
[49,"R.Hallgally"]
[50,"R.O’Meara"]
[51,"R.Pembroke"]
[52,"R.Rozniak"]
[53,"S.Abraham"]
[54,"S.Brookman"]
[55,"S.Chow"]
[56,"S.Harrison"]
[57,"S.Monk"]
[58,"S.Pearce"]
[59,"S.Stretton"]
[60,"S.Tariq"]
[61,"T.Bryan"]
[62,"T.Doyle"]
[63,"T.Harman"]
[64,"T.Watkins"]
[65,"T.Winter"]
[66,"V.Ilott"]